fUST/lending_fUST_20250121
["ID","MTS","AMOUNT","RATE_DAILY","PERIOD"]
[349853397,1737461446882,-3204.18,0.00024246,3]
[349853399,1737461446891,-1004.53,0.00024246,3]
[349853401,1737461446900,-500.0,0.00024246,3]
[349853403,1737461446911,-500.0,0.00024246,3]
[349853405,1737461446921,-1448.9,0.00024246,3]
[349853407,1737461446932,-1352.71,0.00024246,3]
[349853409,1737461446942,-527.44,0.00024246,3]
[349853411,1737461446951,-972.81,0.00024246,3]
[349853413,1737461446961,-828.46,0.00024246,3]
[349853415,1737461446971,-500.0,0.00024246,3]
[349853417,1737461446981,-1369.29,0.00024246,3]
[349853419,1737461446991,-2319.36,0.00024246,3]
[349853421,1737461447001,-500.0,0.00024246,3]
[349853423,1737461447011,-153.0,0.00024253,2]
[349853425,1737461447021,-153.0,0.00024253,2]
[349853427,1737461447031,-153.0,0.00024253,2]
[349853429,1737461447042,-153.0,0.00024253,2]
[349853431,1737461447052,-153.0,0.00024253,2]
[349853434,1737461447062,-153.0,0.00024253,2]
[349853436,1737461447071,-153.0,0.00024253,2]
[349853438,1737461447081,-153.0,0.00024253,2]
[349853439,1737461447090,-153.0,0.00024253,2]
[349853441,1737461447099,-153.0,0.00024253,2]
[349853444,1737461447110,-153.0,0.00024253,2]
[349853446,1737461447120,-153.0,0.00024253,2]
[349853448,1737461447129,-153.0,0.00024253,2]
[349853450,1737461447139,-153.0,0.00024253,2]
[349853452,1737461447149,-153.0,0.00024253,2]
[349853454,1737461447159,-153.0,0.00024253,2]
[349853456,1737461447168,-242.0,0.00024253,2]
[349853458,1737461447178,-153.0,0.00024254,2]
[349853469,1737461447187,-13457.81,0.000243,2]
[349853471,1737461447294,-10000.0,0.0002431,3]
[349853473,1737461447303,-272.70193345,0.00024373,2]
[349853475,1737461447313,-634.47,0.00024383,3]
[349853477,1737461447323,-500.0,0.00024383,3]
[349853479,1737461447333,-594.33,0.00024383,3]
[349853481,1737461447343,-729.11,0.00024383,3]
[349853483,1737461447353,-588.42,0.00024383,3]
[349853485,1737461447364,-1715.19,0.00024383,3]
[349853487,1737461447375,-1280.51,0.00024383,3]
[349853489,1737461447385,-1069.22,0.00024383,3]
[349853491,1737461447395,-1708.09,0.00024383,3]
[349853493,1737461447405,-731.78,0.00024383,3]
[349853495,1737461447415,-557.49,0.00024383,3]
[349853497,1737461447424,-5473.07,0.00024383,3]
[349853499,1737461447434,-9457.26,0.00024383,3]
[349853501,1737461447444,-500.0,0.00024383,3]
[349853503,1737461447454,-395.26586668,0.00024383,3]
[349853505,1737461447464,-3204.18,0.00024383,3]
[349853507,1737461447474,-1004.53,0.00024383,3]
[349853509,1737461447483,-500.0,0.00024383,3]
[349853511,1737461447493,-500.0,0.00024383,3]
[349853513,1737461447502,-1448.9,0.00024383,3]
[349853515,1737461447512,-1352.71,0.00024383,3]
[349853517,1737461447522,-527.44,0.00024383,3]
[349853519,1737461447531,-972.81,0.00024383,3]
[349853521,1737461447541,-828.46,0.00024383,3]
[349853523,1737461447551,-500.0,0.00024383,3]
[349853525,1737461447560,-1369.29,0.00024383,3]
[349853527,1737461447570,-2319.36,0.00024383,3]
[349853529,1737461447580,-500.0,0.00024383,3]
[349853531,1737461447589,-842435.2791564,0.000244,30]
[349853533,1737461447601,-2000.0,0.000244,2]
[349853535,1737461447611,-150.0,0.000244,2]
[349853537,1737461447620,-500.0,0.00024401,3]
[349853539,1737461447630,-500.0,0.00024401,3]
[349853541,1737461447640,-166.17,0.0002443,2]
[349853543,1737461447649,-151.0,0.00024441,7]
[349853545,1737461447659,-500.0,0.00024449,2]
[349853547,1737461447669,-500.0,0.00024449,2]
[349853549,1737461447678,-500.0,0.00024449,2]
[349853551,1737461447688,-500.0,0.00024449,2]
[349853553,1737461447698,-500.0,0.00024449,2]
[349853555,1737461447708,-500.0,0.00024449,2]
[349853557,1737461447718,-500.0,0.00024449,2]
[349853559,1737461447727,-500.0,0.00024449,2]
[349853561,1737461447737,-500.0,0.00024449,2]
[349853563,1737461447747,-500.0,0.00024449,2]
[349853565,1737461447756,-500.0,0.00024449,2]
[349853567,1737461447765,-500.0,0.00024449,2]
[349853569,1737461447775,-500.0,0.00024449,2]
[349853571,1737461447784,-500.0,0.00024449,2]
[349853573,1737461447798,-500.0,0.00024449,2]
[349853575,1737461447808,-500.0,0.00024449,2]
[349853577,1737461447818,-500.0,0.00024449,2]
[349853579,1737461447827,-500.0,0.00024449,2]
[349853581,1737461447838,-500.0,0.00024449,2]
[349853583,1737461447848,-584.13820569,0.00024449,2]
[349853585,1737461447858,-500.0,0.00024449,2]
[349853587,1737461447867,-500.0,0.00024449,2]
[349853589,1737461447877,-500.0,0.00024449,2]
[349853591,1737461447889,-500.0,0.00024449,2]
[349853593,1737461447898,-500.0,0.00024449,2]
[349853595,1737461447908,-500.0,0.00024449,2]
[349853597,1737461447918,-500.0,0.00024449,2]
[349853599,1737461447927,-500.0,0.00024449,2]
[349853601,1737461447937,-500.0,0.00024449,2]
[349853603,1737461447947,-500.0,0.00024449,2]
[349853605,1737461447956,-500.0,0.00024449,2]
[349853607,1737461447966,-500.0,0.00024449,2]
[349853609,1737461447975,-500.0,0.00024449,2]
[349853611,1737461447987,-500.0,0.00024449,2]
[349853613,1737461447997,-500.0,0.00024449,2]
[349853615,1737461448009,-588.56552139,0.00024449,2]
[349853617,1737461448019,-302475.68532372,0.00024461,61]
[349853619,1737461448030,-799.62955058,0.00024461,2]
[349853621,1737461448047,-1152.89407979,0.00024461,15]
[349853623,1737461448057,-293.16992863,0.00024461,2]
[349853625,1737461448067,-812.00869765,0.00024461,2]
[349853627,1737461448077,-322.92394157,0.00024461,2]
[349853629,1737461448088,-288.2017447,0.00024461,2]
[349853631,1737461448098,-1194.29376968,0.00024461,2]
[349853633,1737461448108,-645.59530296,0.00024461,2]
[349853635,1737461448119,-51058.42880148,0.00024461,2]
[349853637,1737461448131,-4152.95650865,0.00024461,2]
[349853639,1737461448142,-13610.25639261,0.00024461,2]
[349853641,1737461448152,-11226.01471004,0.00024461,7]
[349853643,1737461448163,-459708.2298418,0.00024461,61]
[349853652,1737461448254,-2384.17151319,0.00024461,61]
[349853654,1737461448274,-551.05,0.00022328,3]
[349853656,1737461448286,-27846.52065062,0.00024461,61]
[349853707,1737461448811,-4826.14,0.00022054,3]
[349853709,1737461448821,-911.03911316,0.00022191,3]
[349853712,1737461448834,-592.1324729,0.00022191,3]
[349853714,1737461448846,-3322.96841394,0.00022191,3]
[349853716,1737461448857,-4826.14,0.00022328,3]
[349853718,1737461448866,-16245.72,0.00022465,3]
[349853720,1737461448876,-551.05,0.00022465,3]
[349853722,1737461448886,-4826.14,0.00022465,3]
[349853724,1737461448895,-14789.50683187,0.00022602,3]
[349853732,1737461448962,-151.0,0.00022054,7]
[349853734,1737461448972,-151.0,0.00022191,7]
[349853736,1737461448981,-89.02789701,0.00022602,3]
[349853749,1737461449110,-500.0,0.00021917,3]
[349853751,1737461449122,-249.40677106,0.00022601,2]
[349853753,1737461449132,-1367.18527112,0.00022602,3]
[349853755,1737461449142,-551.05,0.00022602,3]
[349853757,1737461449152,-453.39465782,0.00022602,3]
[349853760,1737461449163,-4372.74534218,0.00022602,3]
[349853762,1737461449173,-16245.72,0.00022739,3]
[349853763,1737461449183,-141.53465782,0.00022739,3]
[349855508,1737461766028,204.750485,0.00013973,2]
[349855533,1737462440088,-211.949577,0.00019043,2]
[349855534,1737462440221,-211.949577,0.00019235,2]
[349855535,1737462440245,-169.366272,0.00019494,2]
[349855536,1737462440268,-211.949577,0.00019823,2]
[349855537,1737462440289,-288.25873421,0.00019941,2]
[349855538,1737462440311,-250.0,0.00020032,2]
[349855539,1737462440334,-2541.985268,0.00020149,2]
[349855540,1737462440358,-204.750485,0.00020447,2]
[349855541,1737462440380,-500.0,0.00020625,2]
[349855542,1737462440404,-490.85,0.0002102,2]
[349855543,1737462440426,-177.55106055,0.000213,2]
[349855544,1737462440447,-300.0,0.00021398,2]
[349855545,1737462440468,-500.0,0.00021399,2]
[349855546,1737462440488,-259.23189781,0.00021399,2]
[349855547,1737462440509,-235.59517284,0.00021399,2]
[349855548,1737462440530,-500.0,0.00021399,2]
[349855549,1737462440552,-500.0,0.00021399,2]
[349855550,1737462440574,-200.0,0.00021399,2]
[349855551,1737462440600,-434.13575524,0.00021399,2]
[349855552,1737462440621,-188.10724772,0.00021399,2]
[349855553,1737462440643,-350.88962396,0.00021399,2]
[349855554,1737462440665,-446.00099693,0.00021399,2]
[349855555,1737462440689,-15383.99780306,0.000214,5]
[349855629,1737462632233,-868.36705377,0.00019107,2]
[349855630,1737462632243,-868.36705377,0.000193,2]
[349855631,1737462632252,-1070.85329562,0.0002,2]
[349855632,1737462632262,-154.98450155,0.0002,2]
[349855633,1737462632272,-179.81262584,0.00020876,2]
[349855634,1737462632281,-155.98440156,0.00021,2]
[349855635,1737462632291,-438.54198406,0.000213,2]
[349855636,1737462632302,-532.12450515,0.000213,2]
[349855637,1737462632311,-151.0,0.00021387,2]
[349855638,1737462632321,-300.0,0.00021399,2]
[349855639,1737462632331,-11358.55806443,0.000214,5]
[349855640,1737462632522,-2728.50767203,0.000214,5]
[349855641,1737462632560,-19127.9898526,0.000214,5]
[349855642,1737462632570,-7921.61213999,0.000214,5]
[349855643,1737462632579,-1135424.12721564,0.000214,15]
[349855644,1737462632590,-26197.54053552,0.000214,15]
[349855645,1737462632602,-271967.8521641,0.000214,15]
[349855646,1737462632617,-500.73418957,0.000214,15]
[349855647,1737462632629,-105656.10000002,0.000214,15]
[349855697,1737462637908,-9435.71028066,0.000214,15]
[349855699,1737462637920,-1510.8924315,0.000214,15]
[349855704,1737462637968,-35256.64212365,0.000214,15]
[349855705,1737462637983,-3035.59416447,0.000214,15]
[349855706,1737462637995,-13824.1638897,0.000214,15]
[349855923,1737462640216,-104329.99999998,0.000214,15]
[349855926,1737462640228,-456.32647507,0.000214,15]
[349855932,1737462640279,-4910.92031945,0.000214,15]
[349855934,1737462640291,-3476.00708203,0.000214,15]
[349855940,1737462640340,-1546.78600054,0.000214,15]
[349856308,1737462643200,-714.47439226,0.000214,15]
[349856585,1737462645954,-3432.06607023,0.000214,15]
[349856588,1737462645982,-41744.998,0.000214,15]
[349856591,1737462646008,-3134.75965,0.000214,15]
[349857779,1737462899251,217.105612,0.00013973,2]
[349857819,1737463595135,-578.91136918,0.0001854,2]
[349857820,1737463595158,-302.96970909,0.00019,2]
[349857821,1737463595181,-5121.2573282,0.00019176,2]
[349857822,1737463595202,-303.49116115,0.0001919,2]
[349857823,1737463595223,-465.60894198,0.0001996,2]
[349857824,1737463595244,-300.0,0.00019999,2]
[349857825,1737463595265,-6270.3879674,0.0002,2]
[349857842,1737463796638,216.604915,0.00013973,2]
[349857881,1737463832424,-578.91136918,0.00019107,2]
[349857883,1737463832434,-578.91136918,0.000193,2]
[349857885,1737463832443,-322.2590687,0.00019536,2]
[349857887,1737463832452,-151.0,0.00019988,2]
[349857889,1737463832462,-300.0,0.00019999,2]
[349857892,1737463832472,-14554.01112986,0.0002,2]
[349858080,1737463838131,-10074.92328104,0.0002,2]
[349858081,1737463838141,-211.949577,0.0002006,2]
[349858082,1737463838152,-162.1301093,0.00020196,2]
[349858083,1737463838162,-216.604915,0.00020447,2]
[349858084,1737463838171,-166.1,0.00020536,2]
[349858085,1737463838180,-500.0,0.00020625,2]
[349858086,1737463838190,-235.98100382,0.00021084,2]
[349858087,1737463838199,-9498.54145909,0.00021119,2]
[349858088,1737463838208,-394.68778569,0.000213,2]
[349858089,1737463838217,-16607.52779453,0.000214,5]
[349858090,1737463838226,-3960.80606999,0.000214,5]
[349858091,1737463838235,-68499.61433334,0.000214,15]
[349858092,1737463838247,-23854.01601867,0.000214,15]
[349858116,1737463840248,-45191.4742192,0.000214,15]
[349858132,1737463843219,-164.33839414,0.00021186,2]
[349858133,1737463843230,-1046.86660586,0.000214,15]
[349858134,1737463843241,-369.41080626,0.000214,15]
[349858135,1737463843276,-307966.2633368,0.000214,15]
[349858136,1737463843394,-1482.514053,0.000214,15]
[349858181,1737463846242,-815348.20668976,0.000214,15]
[349858182,1737463846254,-20881.508,0.000214,15]
[349858199,1737464906162,215.028618,0.00013973,2]
[349858200,1737464972143,-385.94091278,0.000189,2]
[349858201,1737464972166,-405.53916741,0.00019,2]
[349858202,1737464972188,-254.64332968,0.00019107,2]
[349858258,1737465033055,-131.2975831,0.00019107,2]
[349858260,1737465033064,-169.410744,0.00019878,2]
[349858262,1737465033075,-170.05380414,0.00019974,2]
[349858265,1737465033085,-1222.0,0.00020072,2]
[349858267,1737465033095,-169.764469,0.00020074,2]
[349858269,1737465033104,-2147.5795739,0.00020076,2]
[349858271,1737465033114,-215.028618,0.00020447,2]
[349858273,1737465033124,-500.0,0.00020625,2]
[349858274,1737465033133,-300.0,0.00020821,2]
[349858277,1737465033143,-1383.08270843,0.00020822,2]
[349858279,1737465033156,-10560.58486655,0.00020822,2]
[349858281,1737465033166,-355.21900713,0.000213,2]
[349858283,1737465033177,-177.55106054,0.000213,2]
[349858285,1737465033187,-3786.0,0.00021399,7]
[349858287,1737465033197,-500.0,0.00021399,7]
[349858289,1737465033206,-11037.92795845,0.000214,5]
[349858291,1737465033216,-2481.86164056,0.000214,5]
[349858293,1737465033226,-36987.54733683,0.000214,15]
[349858295,1737465033238,-13090.26903985,0.000214,15]
[349858298,1737465033249,-68439.54797409,0.000214,15]
[349858300,1737465033260,-1289.31172241,0.000214,15]
[349858804,1737465038237,-5680.8,0.000214,15]
[349858811,1737465038292,-13931.6012986,0.000214,15]
[349858813,1737465038303,-414.0199986,0.000214,15]
[349858819,1737465038352,-153866.12705519,0.000214,15]
[349859202,1737465042434,-1111.38608722,0.00021186,2]
[349859204,1737465042444,-98116.61391244,0.000214,15]
[349859210,1737465042492,-10058.24141999,0.000214,15]
[349859317,1737465043307,-36499.89961003,0.000214,15]
[349859324,1737465043366,-656.34355974,0.000214,15]
[349859331,1737465043422,-3161.33362675,0.000214,15]
[349859565,1737465046216,-4655.9705913,0.000214,15]
[349859571,1737465046334,-20850.00000001,0.000214,15]
[349859747,1737465839224,203.255367,0.00013973,2]
[349859761,1737466148136,-302.9394212,0.00019,2]
[349859762,1737466148157,-302.9394212,0.0001919,2]
[349859763,1737466148178,-257.29394186,0.000193,2]
[349859764,1737466148199,-302.9394212,0.0001938,2]
[349859765,1737466148220,-170.19619454,0.0001957,2]
[349859787,1737466232724,-171.52929457,0.000189,2]
[349859788,1737466232734,-302.9394212,0.00019472,2]
[349859789,1737466232744,-132.74322666,0.0001957,2]
[349859790,1737466232755,-302.9394212,0.00019667,2]
[349859791,1737466232766,-302.9394212,0.0001976,2]
[349859792,1737466232775,-155.63011291,0.00019862,2]
[349859793,1737466232786,-454.40913181,0.0001995,4]
[349859794,1737466232795,-454.40913181,0.0002014,4]
[349859795,1737466232805,-358.098,0.0002033,2]
[349859796,1737466232815,-454.40913181,0.0002033,4]
[349859797,1737466232824,-216.1306,0.00020333,2]
[349859798,1737466232833,-203.255367,0.00020447,2]
[349859799,1737466232842,-454.40913181,0.0002052,4]
[349859800,1737466232851,-500.0,0.00020625,2]
[349859801,1737466232861,-454.40913181,0.0002071,4]
[349859802,1737466232870,-300.0,0.00020789,2]
[349859803,1737466232880,-16418.55737217,0.0002079,2]
[349859804,1737466232892,-1389.45236845,0.0002079,2]
[349859830,1737466238379,-3758.62804196,0.0002079,2]
[349859854,1737466238610,-1677.83928731,0.0002079,2]
[349859856,1737466238619,-591.2456077,0.00021185,2]
[349859858,1737466238629,-4334.66583444,0.000212,7]
[349859860,1737466238638,-1060.31145645,0.000212,2]
[349859862,1737466238648,-319.69710639,0.000213,2]
[349859864,1737466238659,-152.66516287,0.000213,2]
[349859866,1737466238669,-235.5009296,0.00021399,2]
[349859868,1737466238677,-5518.96397922,0.000214,5]
[349859870,1737466238687,-1240.93082029,0.000214,5]
[349859872,1737466238697,-16385.8169231,0.000214,15]
[349860065,1737466240590,-278.27645152,0.000214,15]
[349860367,1737466243569,-52395.17885,0.000214,15]
[349864569,1737467354176,-390.2252857,0.00017809,2]
[349864570,1737467354200,-150.24548251,0.000179,2]
[349864571,1737467354223,-390.2252857,0.00017989,2]
[349864572,1737467354245,-482.54247666,0.000193,2]
[349864573,1737467354268,-250.0,0.0001959,2]
[349864574,1737467354290,-83.46446943,0.00019603,2]
[349864575,1737467376109,211.462382,0.00013973,2]
[349864633,1737467432855,-321.69498444,0.00018524,2]
[349864635,1737467432865,-321.69498444,0.00018711,2]
[349864637,1737467432875,-321.69498444,0.000189,2]
[349864639,1737467432885,-127.40073557,0.00019603,2]
[349864641,1737467432894,-437.03779696,0.0002023,2]
[349864643,1737467432904,-361.681,0.0002033,2]
[349864646,1737467432914,-345.01096238,0.0002033,2]
[349864648,1737467432923,-3862.408237,0.00020437,2]
[349864649,1737467432933,-211.462382,0.00020447,2]
[349864651,1737467432942,-212.761668,0.00020553,2]
[349864653,1737467432952,-500.0,0.00020625,2]
[349864656,1737467432962,-300.0,0.00020638,2]
[349864657,1737467432971,-12732.5416806,0.00020639,2]
[349864659,1737467432981,-1324.39889467,0.0002103,2]
[349864661,1737467432990,-12732.5416806,0.00021084,2]
[349864663,1737467433004,-212.761668,0.0002113,2]
[349864666,1737467433014,-12732.5416807,0.00021182,2]
[349864667,1737467433024,-679.6717714,0.00021185,2]
[349864670,1737467433035,-180.675,0.000212,2]
[349864671,1737467433045,-500.0,0.00021299,2]
[349864673,1737467433054,-500.0,0.00021299,2]
[349864675,1737467433065,-500.0,0.00021299,2]
[349864677,1737467433079,-500.0,0.00021299,2]
[349864679,1737467433089,-500.0,0.00021299,2]
[349864681,1737467433099,-500.0,0.00021299,2]
[349864683,1737467433110,-640.47733778,0.00021299,2]
[349864685,1737467433120,-500.0,0.00021299,2]
[349864687,1737467433130,-500.0,0.00021299,2]
[349864689,1737467433139,-612.76158639,0.00021299,2]
[349864691,1737467433148,-500.0,0.00021299,2]
[349864693,1737467433158,-500.0,0.00021299,2]
[349864694,1737467433168,-500.0,0.00021299,2]
[349864695,1737467433178,-500.0,0.00021299,2]
[349864696,1737467433187,-500.0,0.00021299,2]
[349864697,1737467433197,-500.0,0.00021299,2]
[349864698,1737467433207,-500.0,0.00021299,2]
[349864699,1737467433217,-500.0,0.00021299,2]
[349864700,1737467433227,-500.0,0.00021299,2]
[349864702,1737467433237,-392.55588334,0.00021299,2]
[349864704,1737467433249,-500.0,0.00021299,2]
[349864706,1737467433259,-289.0132135,0.00021299,2]
[349864708,1737467433269,-500.0,0.00021299,2]
[349864710,1737467433279,-500.0,0.00021299,2]
[349864712,1737467433290,-500.0,0.00021299,2]
[349864714,1737467433300,-500.0,0.00021299,2]
[349864716,1737467433310,-500.0,0.00021299,2]
[349864718,1737467433320,-500.0,0.00021299,2]
[349864720,1737467433330,-500.0,0.00021299,2]
[349864722,1737467433339,-581.03052219,0.00021299,2]
[349864724,1737467433349,-500.0,0.00021299,2]
[349864726,1737467433359,-152.31301477,0.00021299,2]
[349864728,1737467433368,-871.19471293,0.000213,5]
[349864730,1737467433379,-3000.0,0.000213,2]
[349864732,1737467433388,-1727.88723029,0.000213,2]
[349864734,1737467433398,-287.72739576,0.000213,2]
[349864736,1737467433407,-7834.974109,0.000213,3]
[349864738,1737467433417,-7756.2055079,0.000213,15]
[349864747,1737467433499,-247.12828563,0.00021299,2]
[349864749,1737467433509,-500.0,0.00021299,2]
[349864751,1737467433519,-15.19713933,0.00021299,2]
[349864753,1737467433532,-484.80286067,0.00021299,2]
[349864755,1737467433541,-500.0,0.00021299,2]
[349864757,1737467433551,-500.0,0.00021299,2]
[349864759,1737467433561,-500.0,0.00021299,2]
[349864761,1737467433571,-500.0,0.00021299,2]
[349864763,1737467433581,-180.01855321,0.00021299,2]
[349864765,1737467433593,-319.98144679,0.00021299,2]
[349864767,1737467433602,-500.0,0.00021299,2]
[349864769,1737467433611,-500.0,0.00021299,2]
[349864771,1737467433621,-390.10539405,0.00021299,2]
[349864776,1737467433656,-109.89460595,0.00021299,2]
[349864778,1737467433666,-500.0,0.00021299,2]
[349864780,1737467433676,-500.0,0.00021299,2]
[349864782,1737467433686,-500.0,0.00021299,2]
[349864784,1737467433697,-500.0,0.00021299,2]
[349864786,1737467433706,-90093.97640622,0.000213,15]
[349865251,1737467438631,-667.27857388,0.00021086,2]
[349865259,1737467438695,-2678.21426798,0.00021086,2]
[349865261,1737467438705,-500.0,0.00021299,2]
[349865263,1737467438714,-500.0,0.00021299,2]
[349865265,1737467438724,-527.73522996,0.00021299,2]
[349865267,1737467438733,-500.0,0.00021299,2]
[349865269,1737467438742,-500.0,0.00021299,2]
[349865271,1737467438753,-500.0,0.00021299,2]
[349865273,1737467438763,-500.0,0.00021299,2]
[349865275,1737467438772,-300.0,0.00021299,2]
[349865277,1737467438781,-61.0752404,0.00021299,2]
[349865280,1737467438793,-438.9247596,0.00021299,2]
[349865282,1737467438802,-8143.08728793,0.000213,15]
[349865284,1737467438814,-844.19082374,0.000213,15]
[349865287,1737467438825,-2990.084995,0.000213,15]
[349865290,1737467438837,-3157.4254304,0.000213,15]
[349865462,1737467440735,-580.99186471,0.000213,15]
[349865463,1737467440796,-331.26021841,0.000213,15]
[349865464,1737467440808,-326.5885,0.000213,15]
[349865465,1737467440858,-453.40201646,0.000213,15]
[349865466,1737467440869,-892.5796797,0.000213,15]
[349865467,1737467440880,-652.04400064,0.000213,15]
[349865754,1737467443741,-2650.30833027,0.000213,15]
[349867450,1737467977534,519.06444185,0.00024,120]
[349867451,1737468095469,245.77862952,0.00024,120]
[349867453,1737468247956,209.003465,0.00013973,2]
[349867463,1737468553116,-214.46332296,0.00018077,2]
[349867464,1737468553139,-214.46332296,0.0001826,2]
[349867465,1737468553164,-214.46332296,0.000192,2]
[349867466,1737468553186,-166.745629,0.00019444,2]
[349867467,1737468553208,-243.976902,0.00019677,2]
[349867468,1737468553230,-678.59016107,0.00019718,2]
[349867515,1737468631964,-302.8788636,0.00019404,2]
[349867517,1737468631974,-302.8788636,0.000196,2]
[349867519,1737468631983,-303.49099261,0.00019796,2]
[349867521,1737468631994,-1048.0,0.0002,2]
[349867523,1737468632003,-184.22116903,0.0002,2]
[349867525,1737468632012,-300.0,0.00020124,2]
[349867527,1737468632022,-12421.3430489,0.00020125,2]
[349867529,1737468632031,-365.579,0.0002033,2]
[349867531,1737468632040,-500.0,0.00020447,7]
[349867533,1737468632050,-209.003465,0.00020447,2]
[349867535,1737468632062,-4021.02593457,0.00020448,2]
[349867538,1737468632074,-5132.22262253,0.00020448,2]
[349867540,1737468632083,-8438.16367423,0.00020556,2]
[349867542,1737468632094,-310.3641415,0.00020578,2]
[349867544,1737468632103,-500.0,0.00020625,2]
[349867546,1737468632113,-1158.84903281,0.00020758,2]
[349867548,1737468632122,-8438.16367424,0.00021049,2]
[349867550,1737468632131,-531.8603695,0.00021185,2]
[349867552,1737468632142,-204.79379082,0.000212,2]
[349867554,1737468632152,-211.219,0.00021257,2]
[349867556,1737468632161,-1158.84903281,0.00021266,2]
[349867558,1737468632170,-500.0,0.00021299,2]
[349867560,1737468632180,-500.0,0.00021299,2]
[349867562,1737468632190,-500.0,0.00021299,2]
[349867564,1737468632199,-500.0,0.00021299,2]
[349867566,1737468632208,-500.0,0.00021299,2]
[349867568,1737468632218,-500.0,0.00021299,2]
[349867570,1737468632227,-500.0,0.00021299,2]
[349867572,1737468632236,-500.0,0.00021299,2]
[349867575,1737468632246,-500.0,0.00021299,2]
[349867578,1737468632255,-500.0,0.00021299,2]
[349867581,1737468632264,-500.0,0.00021299,2]
[349867584,1737468632273,-587.77969652,0.00021299,2]
[349867587,1737468632283,-500.0,0.00021299,2]
[349867590,1737468632292,-500.0,0.00021299,2]
[349867593,1737468632301,-500.0,0.00021299,2]
[349867595,1737468632312,-318.64574348,0.00021299,2]
[349867599,1737468632321,-500.0,0.00021299,2]
[349867600,1737468632330,-394.70719576,0.00021299,2]
[349867602,1737468632340,-500.0,0.00021299,2]
[349867604,1737468632350,-500.0,0.00021299,2]
[349867606,1737468632360,-500.0,0.00021299,2]
[349867608,1737468632369,-500.0,0.00021299,2]
[349867610,1737468632379,-500.0,0.00021299,2]
[349867612,1737468632388,-235.78660761,0.00021299,2]
[349867614,1737468632397,-500.0,0.00021299,2]
[349867616,1737468632407,-500.0,0.00021299,2]
[349867618,1737468632416,-500.0,0.00021299,2]
[349867620,1737468632425,-500.0,0.00021299,2]
[349867622,1737468632434,-500.0,0.00021299,2]
[349867624,1737468632443,-500.0,0.00021299,2]
[349867626,1737468632452,-500.0,0.00021299,2]
[349867627,1737468632462,-500.0,0.00021299,2]
[349867629,1737468632471,-500.0,0.00021299,2]
[349867631,1737468632484,-500.0,0.00021299,2]
[349867632,1737468632496,-500.0,0.00021299,2]
[349867634,1737468632507,-315.13339921,0.00021299,2]
[349867636,1737468632516,-500.0,0.00021299,2]
[349867638,1737468632526,-500.0,0.00021299,2]
[349867641,1737468632536,-500.0,0.00021299,2]
[349867643,1737468632545,-500.0,0.00021299,2]
[349867646,1737468632555,-500.0,0.00021299,2]
[349867648,1737468632565,-500.0,0.00021299,2]
[349867650,1737468632575,-500.0,0.00021299,2]
[349867652,1737468632585,-397.10067101,0.00021299,2]
[349867654,1737468632595,-105.3703056,0.000213,5]
[349867656,1737468632607,-4021.1937146,0.000213,5]
[349867658,1737468632617,-435.59735646,0.000213,5]
[349867661,1737468632627,-15242.94286543,0.000213,15]
[349868128,1737468637766,-5196.43983991,0.00020839,2]
[349868130,1737468637775,-44784.29189417,0.000213,15]
[349868592,1737468643002,-1652.75143806,0.00021087,2]
[349868594,1737468643012,-181117.52240863,0.000213,15]
[349868832,1737468683621,-265.9301847,0.00021185,2]
[349868833,1737468683644,-300.0,0.00021299,2]
[349868834,1737468683666,-317.99639497,0.00021299,2]